bitfinex-derivatives/quotes_SOLF0:USTF0_20230902
["timestamp","ask_amount","ask_price","bid_price","bid_amount"]
[1693618108624,111.67,19.464,19.456,111.67]
[1693618115836,111.67,19.464,19.456,127.08]
[1693618121943,111.67,19.462,19.455,0.06193571]
[1693618127441,111.67,19.462,19.454,111.67]
[1693618128445,0.06193572,19.455,19.454,111.67]
[1693618129252,0.06193572,19.455,19.451,111.67]
[1693618130744,0.06193572,19.455,19.451,111.79389621]
[1693618132149,0.06193572,19.455,19.451,0.12389621]
[1693618134652,111.67,19.454,19.451,0.12389621]
[1693618138451,111.67,19.452,19.44,15.42]
[1693618138656,111.67,19.449,19.44,15.42]
[1693618139453,111.67,19.449,19.435,0.3719863]
[1693618139454,111.67,19.449,19.436,15.42]
[1693618140456,111.67,19.449,19.439,40.83042136]
[1693618140659,111.67,19.449,19.44,111.67]
[1693618141457,40.72353544,19.457,19.444,0.79652158]
[1693618141458,0.70452705,19.446,19.444,0.79652158]
[1693618141758,0.70452705,19.446,19.445,111.67]
[1693618141959,0.06196118,19.447,19.445,111.67]
[1693618142157,111.67,19.455,19.447,15.42]
[1693618142356,111.67,19.455,19.449,15.42]
[1693618143856,111.67,19.455,19.451,15.42]
[1693618144362,111.67,19.454,19.451,15.42]
[1693618145164,111.67,19.454,19.447,15.48196117]
[1693618146158,111.67,19.454,19.451,0.72620844]
[1693618151977,111.67,19.456,19.451,0.72620844]
[1693618155783,111.67,19.457,19.451,0.72620844]
[1693618171985,111.67,19.459,19.451,112.39620844]
[1693618177399,111.67,19.461,19.454,111.67]
[1693618178997,111.67,19.461,19.456,0.81087001]
[1693618182095,21.5205,19.462,19.456,0.81087001]
[1693618191913,111.67,19.461,19.456,0.81087001]
[1693618201927,133.1905,19.462,19.456,0.81087001]
[1693618205226,21.5205,19.462,19.46,111.67]
[1693618207529,21.5205,19.462,19.461,111.67]
[1693618210231,21.5205,19.462,19.46,111.67]
[1693618228647,111.67,19.462,19.456,0.81087001]
[1693618228844,138.15427945,19.462,19.456,0.81087001]
[1693618229045,21.2791,19.461,19.456,0.81087001]
[1693618231949,132.9491,19.461,19.456,0.81087001]
[1693618241351,0.79919639,19.46,19.456,0.81087001]
[1693618243663,111.67,19.459,19.456,0.81087001]
[1693618251966,111.67,19.458,19.456,0.81087001]
[1693618264774,111.67,19.457,19.456,0.81087001]
[1693618280084,111.67,19.457,19.447,333.82291396]
[1693618280282,111.67,19.454,19.449,15.42]
[1693618280481,111.67,19.454,19.447,333.82291396]
[1693618280682,111.67,19.454,19.449,15.42]
[1693618280882,111.67,19.454,19.447,333.82291396]
[1693618281084,111.67,19.454,19.449,15.42]
[1693618281290,111.67,19.454,19.447,333.82291396]
[1693618281490,111.67,19.454,19.449,15.42]
[1693618281691,111.67,19.454,19.447,333.82291396]
[1693618281991,111.67,19.454,19.449,15.42]
[1693618282193,111.67,19.454,19.447,333.82291396]
[1693618282492,111.67,19.454,19.449,15.42]
[1693618282792,111.67,19.454,19.447,333.82291396]
[1693618283093,111.67,19.454,19.449,15.42]
[1693618283290,111.67,19.454,19.447,333.82291396]
[1693618283592,111.67,19.454,19.449,15.42]
[1693618283798,111.67,19.454,19.447,333.82291396]
[1693618284000,111.67,19.454,19.449,15.42]
[1693618284299,111.67,19.454,19.447,333.82291396]
[1693618284597,111.67,19.454,19.449,15.42]
[1693618284793,111.67,19.454,19.447,333.82291396]
[1693618285098,111.67,19.454,19.449,15.42]
[1693618285294,111.67,19.454,19.447,333.82291396]
[1693618285499,111.67,19.454,19.449,15.42]
[1693618285701,111.67,19.454,19.447,333.82291396]
[1693618286201,111.67,19.454,19.449,15.42]
[1693618286400,111.67,19.454,19.447,333.82291396]
[1693618291208,111.67,19.454,19.452,0.12388953]
[1693618297705,111.67,19.453,19.452,0.12388953]
[1693618315824,111.67,19.453,19.448,0.18587148]
[1693618316017,111.67,19.449,19.448,0.18587148]
[1693618320318,111.67,19.449,19.448,15.60587148]
[1693618320524,111.67,19.451,19.449,15.42]
[1693618320715,111.67,19.454,19.449,15.42]
[1693618322126,111.67,19.455,19.449,15.42]
[1693618330923,111.67,19.459,19.451,111.67]
[1693618331319,21.2791,19.461,19.454,111.67]
[1693618331527,111.67,19.465,19.457,111.67]
[1693618331728,111.67,19.468,19.461,15.42]
[1693618339635,111.67,19.466,19.459,15.42]
[1693618339835,111.67,19.463,19.456,15.42]
[1693618340230,21.6747,19.462,19.456,15.42]
[1693618340428,111.67,19.46,19.453,111.67]
[1693618343036,112.12454546,19.461,19.454,111.67]
[1693618344734,111.67,19.461,19.454,111.67]
[1693618352044,111.67,19.46,19.452,111.67]
[1693618364856,111.67,19.46,19.452,151.87143884]
[1693618366351,111.67,19.459,19.452,40.20143884]
[1693618366557,111.67,19.459,19.451,111.67]
[1693618367149,111.67,19.456,19.449,15.42]
[1693618367552,20.3914,19.455,19.449,15.42]
[1693618372055,20.3914,19.455,19.451,15.42]
[1693618373649,111.67,19.454,19.447,15.42]
[1693618373849,111.67,19.454,19.441,541.42240492]
[1693618373850,111.67,19.452,19.443,111.67]
[1693618375959,111.67,19.448,19.441,41.42240492]
[1693618376161,111.67,19.448,19.44,111.67]
[1693618376360,20.1036,19.447,19.44,111.67]
[1693618377159,20.1036,19.447,19.44,153.40984574]
[1693618382160,20.1036,19.447,19.441,111.67]
[1693618382364,111.67,19.449,19.441,111.67]
[1693618382565,21.1578,19.448,19.441,111.67]
[1693618392072,21.1578,19.448,19.443,111.67]
[1693618406082,21.1578,19.448,19.443,153.41807197]
[1693618411482,21.1578,19.448,19.443,111.67]
[1693618411986,21.1578,19.448,19.441,111.67]
[1693618414286,21.1578,19.448,19.441,152.71061695]
[1693618415785,21.1578,19.448,19.441,111.67]
[1693618417491,111.67,19.446,19.44,15.43]
[1693618419386,111.67,19.446,19.44,57.2315424]
[1693618419787,111.67,19.446,19.44,41.8015424]
[1693618419989,111.67,19.446,19.439,111.67]
[1693618424593,111.67,19.446,19.439,153.17951155]
[1693618442204,111.67,19.444,19.439,41.50951155]
[1693618442399,111.67,19.444,19.436,111.67]
[1693618451911,111.67,19.444,19.434,15.43]
[1693618452115,111.67,19.443,19.436,15.43]
[1693618452616,20.8622,19.442,19.436,15.43]
[1693618457217,20.8622,19.442,19.435,111.67]
[1693618458518,111.67,19.441,19.434,15.43]
[1693618458714,111.67,19.441,19.435,9.45020904]
[1693618459720,111.67,19.441,19.434,159.29602201]
[1693618459919,111.67,19.441,19.435,143.86602201]
[1693618460218,111.67,19.441,19.433,111.67]
[1693618460421,111.67,19.441,19.434,9.45046373]
[1693618462124,111.67,19.44,19.434,9.45046373]
[1693618462319,111.67,19.44,19.432,168.07942386]
[1693618462515,111.67,19.44,19.433,9.45055671]
[1693618465319,111.67,19.44,19.432,168.07942386]
[1693618468723,111.67,19.44,19.432,168.08942386]
[1693618470014,111.67,19.44,19.432,152.64942386]
[1693618471122,111.67,19.44,19.432,168.08942386]
[1693618471323,111.67,19.44,19.432,152.64942386]
[1693618471513,111.67,19.44,19.432,168.08942386]
[1693618471716,111.67,19.44,19.432,111.67]
[1693618471915,111.67,19.436,19.429,111.67]
[1693618472119,20.4022,19.435,19.429,15.44]
[1693618479523,20.4022,19.435,19.428,111.67]
[1693618482031,111.67,19.434,19.427,111.67]
[1693618482227,111.67,19.431,19.424,111.67]
[1693618486934,111.67,19.431,19.423,111.67]
[1693618491133,111.67,19.427,19.422,41.12345678]
[1693618491333,111.67,19.427,19.42,15.44]
[1693618491538,21.2484,19.426,19.42,15.44]
[1693618493346,111.67,19.423,19.416,111.67]
[1693618493542,111.67,19.423,19.418,15.44]
[1693618493744,111.67,19.423,19.42,15.44]
[1693618493944,111.67,19.423,19.416,111.67]
[1693618494141,111.67,19.423,19.418,15.44]
[1693618494444,111.67,19.423,19.42,15.44]
[1693618494644,111.67,19.423,19.416,111.67]
[1693618494844,111.67,19.423,19.418,15.44]
[1693618495143,111.67,19.423,19.419,9.45781923]
[1693618495445,111.67,19.423,19.42,9.45781923]
[1693618495643,111.67,19.423,19.416,111.67]
[1693618495848,111.67,19.423,19.418,15.44]
[1693618496045,111.67,19.423,19.419,9.45779088]
[1693618496243,111.67,19.423,19.42,9.45779088]
[1693618496543,21.2484,19.426,19.42,15.45]
[1693618496840,111.67,19.427,19.422,15.45]
[1693618497046,111.67,19.43,19.423,9.45570763]
[1693618497242,111.67,19.433,19.426,15.45]
[1693618497451,21.6245,19.434,19.429,111.67]
[1693618502051,21.6245,19.434,19.426,111.67]
[1693618502052,133.2945,19.434,19.426,111.67]
[1693618502252,111.67,19.431,19.424,111.67]
[1693618505756,111.67,19.431,19.426,15.45]
[1693618505952,20.9376,19.433,19.427,111.67]
[1693618512060,20.9376,19.433,19.429,15.45]
[1693618512662,111.67,19.436,19.429,15.45]
[1693618512862,111.67,19.439,19.432,15.45]
[1693618513061,0.45454546,19.438,19.432,15.45]
[1693618515966,111.67,19.436,19.429,111.67]
[1693618516673,20.145,19.435,19.429,111.67]
[1693618522080,20.145,19.435,19.429,15.45]
[1693618522081,131.815,19.435,19.429,15.45]
[1693618530686,131.815,19.435,19.429,41.8322182]
[1693618530886,131.815,19.435,19.428,111.67]
[1693618532088,111.67,19.434,19.426,111.67]
[1693618540086,20.145,19.435,19.429,111.67]
[1693618543595,20.145,19.435,19.43,111.67]
[1693618548397,20.145,19.435,19.427,111.67]
[1693618548591,131.815,19.435,19.427,111.67]
[1693618551999,131.815,19.435,19.429,15.44]
[1693618552000,20.145,19.435,19.429,15.44]
[1693618562006,20.145,19.435,19.429,111.67]
[1693618564603,20.145,19.435,19.429,152.60875449]
[1693618569714,20.145,19.435,19.434,15.44]
[1693618570812,20.145,19.435,19.43,111.67]
[1693618578327,131.815,19.435,19.427,111.67]
[1693618581926,20.145,19.435,19.429,111.67]
[1693618604146,111.67,19.434,19.426,111.67]
[1693618607157,111.67,19.433,19.425,111.67]
[1693618611665,111.67,19.433,19.426,15.44]
[1693618612166,111.67,19.434,19.426,111.67]
[1693618613559,20.145,19.435,19.43,111.67]
[1693618615869,111.67,19.434,19.427,111.67]
[1693618628177,111.67,19.434,19.427,152.81050436]
[1693618629774,111.67,19.434,19.427,111.67]
[1693618631977,111.67,19.432,19.426,40.25115799]
[1693618632177,111.67,19.432,19.424,111.67]
[1693618633879,111.67,19.429,19.421,152.63296295]
[1693618634477,20.5022,19.428,19.421,152.63296295]
[1693618635279,111.67,19.426,19.421,40.96296295]
[1693618635580,111.67,19.426,19.418,111.67]
[1693618647091,111.67,19.426,19.418,153.27576427]
[1693618652795,111.67,19.422,19.415,15.45]
[1693618652992,111.67,19.42,19.413,15.45]
[1693618655889,21.2051,19.421,19.415,111.67]
[1693618662002,132.8751,19.421,19.414,111.67]
[1693618675702,132.8751,19.421,19.414,153.20988676]
[1693618676005,132.8751,19.421,19.414,41.53988676]
[1693618676307,132.8751,19.421,19.413,111.67]
[1693618708724,111.67,19.42,19.413,15.45]
[1693618710221,111.67,19.417,19.411,40.92640246]
[1693618710422,111.67,19.417,19.4,785.49427149]
[1693618710423,111.67,19.414,19.408,15.45]
[1693618715734,111.67,19.412,19.404,111.67]
[1693618721032,133.803,19.415,19.408,15.45]
[1693618721937,22.133,19.415,19.408,111.67]
[1693618733054,111.67,19.419,19.411,111.67]
[1693618734046,111.67,19.419,19.41,500.0]
[1693618734248,111.67,19.422,19.415,111.67]
[1693618742166,111.67,19.423,19.416,111.67]
[1693618752672,21.2568,19.428,19.415,194.85290786]
[1693618752866,111.67,19.432,19.426,15.45]
[1693618757679,111.67,19.434,19.427,111.67]
[1693618761982,111.67,19.436,19.429,111.67]
[1693618764479,111.67,19.437,19.43,111.67]
[1693618781696,575.0,19.48,19.451,15.44]
[1693618781895,20.2483,19.47,19.464,15.44]
[1693618782091,20.2483,19.47,19.465,111.67]
[1693618782296,68.51863486,19.474,19.473,22.90305997]
[1693618782795,500.0,19.486,19.473,299.07176382]
[1693618782987,500.0,19.486,19.474,276.16870385]
[1693618783189,111.67,19.479,19.474,276.16870385]
[1693618783893,111.67,19.476,19.474,276.16870385]
[1693618784493,111.67,19.475,19.474,276.16870385]
[1693618786192,111.67,19.475,19.474,276.2305786]
[1693618787399,123.62,19.476,19.474,276.2305786]
[1693618787702,123.62,19.478,19.474,276.2305786]
[1693618788292,494.48,19.484,19.474,276.2305786]
[1693618788293,123.62,19.476,19.474,276.2305786]
[1693618788491,153.53580819,19.476,19.474,276.2305786]
[1693618788696,153.53580819,19.476,19.474,243.0977786]
[1693618788898,153.53580819,19.476,19.475,276.16595477]
[1693618789399,153.53580819,19.476,19.474,0.06187475]
[1693618789795,153.53580819,19.476,19.47,0.12377426]
[1693618790194,153.53580819,19.476,19.466,0.18569854]
[1693618790995,29.91580819,19.476,19.46,0.45454546]
[1693618791305,520.15394,19.475,19.458,0.30962146]
[1693618791494,123.62,19.467,19.458,0.30962146]
[1693618792598,123.62,19.467,19.459,15.44]
[1693618792800,123.62,19.469,19.459,15.44]
[1693618797415,21.4952,19.468,19.459,15.44]
[1693618798210,21.4952,19.468,19.458,0.30962146]
[1693618802513,21.4952,19.468,19.457,123.62]
[1693618803015,123.62,19.464,19.452,0.45454546]
[1693618803216,123.62,19.464,19.45,123.62]
[1693618803217,123.62,19.464,19.453,0.45454546]
[1693618803514,0.06191289,19.462,19.452,9.89949505]
[1693618803708,0.06191289,19.462,19.453,0.45454546]
[1693618806914,0.06191289,19.462,19.458,0.12385053]
[1693618808715,0.06191289,19.462,19.459,15.41]
[1693618810310,0.06191289,19.462,19.458,123.74385053]
[1693618817528,21.4952,19.468,19.458,123.62]
[1693618818632,0.06191271,19.462,19.458,123.62]
[1693618822823,0.06191271,19.462,19.458,123.74385017]
[1693618832335,0.06191271,19.462,19.461,111.34]
[1693618839746,0.06191271,19.462,19.458,111.46385017]
[1693618848254,0.06191271,19.462,19.458,0.12385017]
[1693618849149,0.06191271,19.462,19.46,111.34]
[1693618850952,41.45865433,19.475,19.459,15.42]
[1693618850953,111.34,19.47,19.461,111.34]
[1693618851148,111.34,19.47,19.462,111.34]
[1693618852150,111.34,19.471,19.463,111.34]
[1693618858764,111.34,19.469,19.462,111.34]
[1693618861062,111.34,19.472,19.464,126.75]
[1693618861265,111.34,19.472,19.465,0.45454546]
[1693618861964,111.34,19.473,19.465,111.79454546]
[1693618862159,111.34,19.473,19.465,111.34]
[1693618863759,111.34,19.474,19.466,111.34]
[1693618871967,111.34,19.473,19.466,111.34]
[1693618878176,20.4185,19.475,19.468,111.34]
[1693618878573,20.4185,19.475,19.469,15.41]
[1693618879375,111.34,19.481,19.473,111.34]
[1693618881969,111.34,19.48,19.472,111.34]
[1693618882381,111.34,19.477,19.47,111.34]
[1693618887382,111.34,19.477,19.471,15.41]
[1693618888282,111.34,19.477,19.47,111.34]
[1693618892085,72.44572545,19.483,19.468,111.34]
[1693618892086,111.34,19.476,19.468,111.34]
[1693618899585,111.34,19.474,19.467,151.88209444]
[1693618905794,111.34,19.474,19.464,15.41]
[1693618905795,111.34,19.471,19.465,0.45454546]
[1693618908692,111.34,19.468,19.465,0.45454546]
[1693618908996,111.34,19.468,19.463,0.45454546]
[1693618910391,111.34,19.468,19.462,41.41304192]
[1693618910392,111.34,19.468,19.462,0.06191257]
[1693618910598,111.34,19.465,19.462,0.06191257]
[1693618912202,111.34,19.466,19.462,0.06191257]
[1693618914705,111.34,19.465,19.462,0.06191257]
[1693618922816,111.34,19.465,19.461,40.28747432]
[1693618923009,111.34,19.465,19.458,111.34]
[1693618924110,0.06191258,19.462,19.458,111.34]
[1693618926817,0.06191258,19.462,19.458,152.10875641]
[1693618927416,0.06191258,19.462,19.458,152.23260633]
[1693618937427,111.34,19.465,19.458,152.10875641]
[1693618938629,0.06191258,19.462,19.458,152.10875641]
[1693618942036,0.06191258,19.462,19.458,40.76875641]
[1693618942336,0.06191258,19.462,19.458,0.12384992]
[1693618958344,111.34,19.459,19.458,0.12384992]
[1693618958543,111.34,19.459,19.454,0.18581206]
[1693618965551,111.34,19.455,19.446,111.64981074]
[1693618966249,111.34,19.455,19.446,153.32709747]
[1693618967557,111.34,19.455,19.446,153.01728673]
[1693618968852,111.34,19.455,19.447,9.44463774]
[1693618970757,20.8438,19.454,19.447,9.44463774]
[1693618971960,111.34,19.452,19.447,9.44463774]
[1693618972258,111.34,19.452,19.45,0.18585021]
[1693618975860,111.34,19.452,19.446,41.9251366]
[1693618976261,111.34,19.452,19.446,0.24784987]
[1693618976563,111.34,19.448,19.446,0.24784987]
[1693618982670,111.34,19.448,19.444,41.47249356]
[1693618982969,111.34,19.448,19.44,111.34]
[1693618983170,111.34,19.448,19.441,9.44805164]
[1693618986172,111.34,19.448,19.446,0.12392627]
[1693618991969,111.34,19.447,19.446,0.12392627]
[1693618997679,111.34,19.447,19.441,9.44805164]
[1693618997877,111.34,19.445,19.441,9.44805164]
[1693619000987,111.34,19.445,19.442,0.18592659]
[1693619008290,111.34,19.443,19.438,0.24795174]
[1693619008591,62.58775886,19.454,19.438,0.24795174]
[1693619008592,111.34,19.44,19.438,0.24795174]
[1693619012096,111.34,19.439,19.438,0.24795174]
[1693619012497,111.34,19.439,19.437,40.57583546]
[1693619012693,111.34,19.439,19.432,15.43]
[1693619012896,111.34,19.439,19.434,15.43]
[1693619013098,111.34,19.439,19.435,9.45062512]
[1693619013295,111.34,19.439,19.432,15.43]
[1693619013495,111.34,19.439,19.434,15.43]
[1693619013792,111.34,19.439,19.435,9.45060878]
[1693619013993,111.34,19.439,19.432,15.43]
[1693619014199,111.34,19.439,19.434,15.43]
[1693619014395,111.34,19.439,19.435,9.45072901]
[1693619014598,111.34,19.439,19.432,15.43]
[1693619014795,111.34,19.439,19.434,15.43]
[1693619014999,111.34,19.439,19.435,9.45068291]
[1693619015202,111.34,19.439,19.432,15.43]
[1693619015502,111.34,19.439,19.433,9.45065538]
[1693619016997,111.34,19.439,19.434,9.45065538]
[1693619017303,111.34,19.439,19.431,153.05928019]
[1693619017493,111.34,19.439,19.432,9.45211051]
[1693619019697,111.34,19.435,19.432,9.45211051]
[1693619022705,111.34,19.435,19.431,41.71928019]
[1693619022904,111.34,19.435,19.428,111.34]
[1693619023203,111.34,19.435,19.429,9.45280444]
[1693619023605,111.34,19.434,19.429,9.45280444]
[1693619023805,111.34,19.434,19.431,15.43]
[1693619024000,111.34,19.434,19.427,126.77]
[1693619024200,111.34,19.434,19.428,9.45266176]
[1693619029813,111.34,19.431,19.427,42.1728395]
[1693619030013,111.34,19.431,19.423,111.34]
[1693619030215,111.34,19.431,19.425,15.43]
[1693619030513,111.34,19.431,19.426,9.45524563]
[1693619030715,111.34,19.431,19.425,15.43]
[1693619030915,111.34,19.431,19.426,9.45524563]
[1693619031213,111.34,19.431,19.427,9.45524563]
[1693619031406,111.34,19.431,19.423,111.34]
[1693619031605,111.34,19.431,19.425,15.43]
[1693619031814,111.34,19.431,19.426,9.45507054]
[1693619032005,111.34,19.431,19.427,9.45507054]
[1693619032211,111.34,19.431,19.423,111.34]
[1693619032410,111.34,19.431,19.425,15.43]
[1693619032617,111.34,19.431,19.426,9.45501796]
[1693619032910,111.34,19.431,19.427,9.45501796]
[1693619033115,111.34,19.431,19.423,111.34]
[1693619033315,111.34,19.431,19.425,15.43]
[1693619033515,111.34,19.431,19.426,9.45495238]
[1693619033712,111.34,19.431,19.427,9.45495238]
[1693619033906,111.34,19.431,19.423,111.34]
[1693619034214,111.34,19.431,19.425,15.43]
[1693619034407,111.34,19.431,19.426,9.45500816]
[1693619034610,111.34,19.431,19.427,9.45500816]
[1693619034812,111.34,19.431,19.423,153.02312756]
[1693619035012,111.34,19.431,19.425,15.43]
[1693619035206,111.34,19.431,19.426,9.45494985]
[1693619035408,111.34,19.431,19.427,9.45494985]
[1693619035716,111.34,19.431,19.423,153.02312756]
[1693619035917,111.34,19.431,19.425,15.44]
[1693619036218,111.34,19.431,19.426,9.45492102]
[1693619036414,111.34,19.431,19.427,9.45492102]
[1693619036615,111.34,19.431,19.423,153.02312756]
[1693619036815,111.34,19.431,19.425,15.44]
[1693619037017,111.34,19.431,19.426,9.45487802]
[1693619037317,111.34,19.431,19.427,9.45487802]
[1693619037509,111.34,19.431,19.423,153.02312756]
[1693619037708,111.34,19.431,19.425,15.44]
[1693619037909,111.34,19.431,19.426,9.454842]
[1693619038116,111.34,19.431,19.427,9.454842]
[1693619038320,111.34,19.431,19.423,153.02312756]
[1693619038509,111.34,19.431,19.425,15.44]
[1693619038708,111.34,19.431,19.426,9.45481875]
[1693619038912,111.34,19.431,19.427,9.45481875]
[1693619039212,111.34,19.431,19.428,9.45481875]
[1693619039413,111.34,19.431,19.423,153.02312756]
[1693619039716,111.34,19.431,19.425,15.44]
[1693619039913,111.34,19.431,19.426,9.4547829]
[1693619040107,111.34,19.431,19.427,9.4547829]
[1693619040319,111.34,19.431,19.423,153.02312756]
[1693619040517,111.34,19.431,19.425,15.44]
[1693619040717,111.34,19.431,19.426,9.45502242]
[1693619040920,111.34,19.431,19.427,9.45502242]
[1693619041115,111.34,19.431,19.423,153.02312756]
[1693619041317,111.34,19.431,19.425,15.44]
[1693619041515,111.34,19.431,19.426,9.45497745]
[1693619041714,111.34,19.431,19.427,9.45497745]
[1693619041914,111.34,19.43,19.428,9.45497745]
[1693619042110,111.34,19.43,19.422,111.34]
[1693619042416,111.34,19.43,19.423,9.45491939]
[1693619043117,111.34,19.432,19.425,111.34]
[1693619043317,111.34,19.432,19.426,9.45491939]
[1693619050223,111.34,19.429,19.422,153.04781892]
[1693619050420,111.34,19.429,19.423,9.45634957]
[1693619061923,111.34,19.427,19.423,9.45634957]
[1693619062119,111.34,19.427,19.424,9.45634957]
[1693619062627,111.34,19.427,19.425,9.45634957]
[1693619062829,111.34,19.427,19.426,9.45634957]
[1693619063228,111.34,19.427,19.422,15.44]
[1693619063430,111.34,19.427,19.423,9.45634957]
[1693619063630,111.34,19.427,19.424,9.45634957]
[1693619063829,111.34,19.427,19.425,9.45634957]
[1693619064029,111.34,19.427,19.426,9.45634957]
[1693619064429,111.34,19.427,19.42,111.34]
[1693619064622,111.34,19.427,19.422,15.44]
[1693619064826,111.34,19.427,19.423,9.45622704]
[1693619065025,111.34,19.427,19.424,9.45622704]
[1693619065332,111.34,19.427,19.425,9.45622704]
[1693619065531,111.34,19.427,19.42,111.34]
[1693619065731,111.34,19.427,19.422,15.44]
[1693619065931,111.34,19.427,19.423,9.45615544]
[1693619066134,111.34,19.427,19.424,9.45615544]
[1693619066332,111.34,19.427,19.425,9.45615544]
[1693619066532,111.34,19.427,19.42,111.34]
[1693619066732,111.34,19.427,19.422,15.44]
[1693619066923,111.34,19.427,19.42,111.34]
[1693619066924,111.34,19.427,19.423,9.45610187]
[1693619067129,111.34,19.427,19.424,9.45610187]
[1693619067422,111.34,19.427,19.425,9.45610187]
[1693619067626,111.34,19.427,19.42,111.34]
[1693619067831,111.34,19.427,19.422,15.44]
[1693619068131,111.34,19.427,19.423,9.45606363]
[1693619068333,111.34,19.427,19.422,15.44]
[1693619068631,111.34,19.427,19.423,9.45606363]
[1693619068836,111.34,19.427,19.424,9.45606363]
[1693619069032,111.34,19.427,19.425,9.45606363]
[1693619069334,111.34,19.427,19.42,111.34]
[1693619069533,111.34,19.427,19.422,15.44]
[1693619069731,111.34,19.427,19.421,9.45600837]
[1693619069732,111.34,19.427,19.423,9.45600837]
[1693619070034,111.34,19.427,19.424,9.45600837]
[1693619070234,111.34,19.427,19.425,9.45600837]
[1693619070433,111.34,19.427,19.42,111.34]
[1693619070632,111.34,19.427,19.422,15.44]
[1693619070833,111.34,19.427,19.423,9.45599691]
[1693619071134,111.34,19.427,19.424,9.45599691]
[1693619071332,111.34,19.427,19.425,9.45599691]
[1693619071634,111.34,19.427,19.42,111.34]
[1693619071827,111.34,19.427,19.422,15.44]
[1693619072026,111.34,19.427,19.423,9.45598969]
[1693619072232,111.34,19.427,19.424,9.45598969]
[1693619072431,111.34,19.427,19.425,9.45598969]
[1693619072633,111.34,19.427,19.419,151.85028806]
[1693619072834,111.34,19.427,19.42,9.45599601]
[1693619073828,111.34,19.427,19.422,111.34]
[1693619074033,111.34,19.429,19.423,9.45599601]
[1693619081940,111.34,19.431,19.425,15.44]
[1693619082239,111.34,19.431,19.426,9.45599601]
[1693619092045,111.34,19.429,19.426,9.45599601]
[1693619092541,111.34,19.429,19.423,40.88888888]
[1693619092747,111.34,19.429,19.425,15.44]
[1693619092946,111.34,19.429,19.426,9.45542292]
[1693619093246,111.34,19.429,19.422,267.87906903]
[1693619093544,111.34,19.429,19.423,9.45541041]
[1693619112254,111.34,19.429,19.423,220.38753144]
[1693619112454,111.34,19.429,19.425,15.44]
[1693619112649,111.34,19.429,19.423,210.93212103]
[1693619112850,111.34,19.429,19.425,15.44]
[1693619113047,111.34,19.429,19.423,210.93212103]
[1693619113347,111.34,19.429,19.425,15.44]
[1693619113552,111.34,19.429,19.424,9.45607209]
[1693619113553,111.34,19.429,19.423,210.93212103]
[1693619113752,111.34,19.429,19.425,15.44]
[1693619113957,111.34,19.429,19.423,210.93212103]
[1693619114160,111.34,19.429,19.425,15.44]
[1693619114353,111.34,19.429,19.423,210.93212103]